fUST/lending_fUST_20250410
["ID","MTS","AMOUNT","RATE_DAILY","PERIOD"]
[357661368,1744291849097,-500.0,0.00016438,2]
[357661369,1744291849107,-500.0,0.00016438,2]
[357661370,1744291849117,-500.0,0.00016438,2]
[357661371,1744291849127,-500.0,0.00016438,2]
[357661372,1744291849138,-500.0,0.00016438,2]
[357661373,1744291849148,-3558.08,0.00016438,2]
[357661374,1744291849158,-500.0,0.00016438,2]
[357661375,1744291849168,-500.0,0.00016438,2]
[357661376,1744291849178,-585.68,0.00016438,2]
[357661377,1744291849188,-500.0,0.00016438,2]
[357661378,1744291849199,-500.0,0.00016438,2]
[357661379,1744291849209,-500.0,0.00016438,2]
[357661380,1744291849218,-500.0,0.00016438,2]
[357661381,1744291849228,-500.0,0.00016438,2]
[357661382,1744291849238,-500.0,0.00016438,2]
[357661383,1744291849249,-730.14,0.00016438,2]
[357661384,1744291849258,-500.0,0.00016438,2]
[357661385,1744291849268,-2966.08,0.00016438,2]
[357661386,1744291849279,-500.0,0.00016438,2]
[357661387,1744291849289,-558.03,0.00016438,2]
[357661388,1744291849300,-752.75,0.00016438,2]
[357661389,1744291849311,-365.06471958,0.00016438,2]
[357661390,1744291849321,-500.0,0.00016438,2]
[357661391,1744291849332,-1344.28,0.00016438,2]
[357661392,1744291849342,-500.0,0.00016438,2]
[357661393,1744291849352,-1094.76,0.00016438,2]
[357661394,1744291849363,-500.0,0.00016438,2]
[357661395,1744291849373,-500.0,0.00016438,2]
[357661396,1744291849384,-500.0,0.00016438,2]
[357661397,1744291849394,-1512.09,0.00016438,2]
[357661398,1744291849405,-751.24,0.00016438,2]
[357661399,1744291849415,-732.84,0.00016438,2]
[357661400,1744291849426,-960.29,0.00016438,2]
[357661401,1744291849436,-500.0,0.00016438,2]
[357661402,1744291849450,-500.0,0.00016438,2]
[357661403,1744291849461,-500.0,0.00016438,2]
[357661404,1744291849471,-577.57,0.00016438,2]
[357661405,1744291849482,-500.0,0.00016438,2]
[357661406,1744291849494,-361.79504339,0.00016438,2]
[357661407,1744291849504,-500.0,0.00016438,2]
[357661408,1744291849514,-500.0,0.00016438,2]
[357661409,1744291849524,-2122.95,0.00016438,2]
[357661410,1744291849536,-560.93,0.00016438,2]
[357661411,1744291849546,-500.0,0.00016438,2]
[357661412,1744291849555,-500.0,0.00016438,2]
[357661413,1744291849565,-500.0,0.00016438,2]
[357661414,1744291849574,-500.0,0.00016438,2]
[357661415,1744291849586,-500.0,0.00016438,2]
[357661416,1744291849596,-500.0,0.00016438,2]
[357661417,1744291849606,-500.0,0.00016438,2]
[357661418,1744291849616,-500.0,0.00016438,2]
[357661419,1744291849627,-500.0,0.00016438,2]
[357661420,1744291849637,-500.0,0.00016438,2]
[357661421,1744291849647,-3054.62,0.00016438,2]
[357661422,1744291849657,-917.8,0.00016438,2]
[357661423,1744291849666,-500.0,0.00016438,2]
[357661424,1744291849676,-500.0,0.00016438,2]
[357661425,1744291849686,-501.32638696,0.00016438,2]
[357661426,1744291849696,-1014.9,0.00016438,2]
[357661427,1744291849705,-500.0,0.00016438,2]
[357661428,1744291849715,-500.0,0.00016438,2]
[357661429,1744291849725,-590.62,0.00016438,2]
[357661430,1744291849735,-500.0,0.00016438,2]
[357661431,1744291849744,-500.0,0.00016438,2]
[357661432,1744291849755,-500.0,0.00016438,2]
[357661433,1744291849765,-363.38908575,0.00016438,2]
[357661434,1744291849775,-866.83,0.00016438,2]
[357661435,1744291849786,-500.0,0.00016438,2]
[357661436,1744291849796,-500.0,0.00016438,2]
[357661437,1744291849806,-500.0,0.00016438,2]
[357661438,1744291849816,-1325.47,0.00016438,2]
[357661439,1744291849826,-1294.41,0.00016438,2]
[357661440,1744291849836,-500.0,0.00016438,2]
[357661441,1744291849846,-3882.88,0.00016438,2]
[357661442,1744291849856,-500.0,0.00016438,2]
[357661443,1744291849866,-500.0,0.00016438,2]
[357661444,1744291849875,-500.0,0.00016438,2]
[357661445,1744291849885,-500.0,0.00016438,2]
[357661446,1744291849895,-601.83893743,0.00016438,2]
[357661447,1744291849905,-500.0,0.00016438,2]
[357661448,1744291849915,-500.0,0.00016438,2]
[357661449,1744291849924,-501.93,0.00016438,2]
[357661450,1744291849934,-1260.25,0.00016438,2]
[357661451,1744291849943,-500.0,0.00016438,2]
[357661452,1744291849953,-500.0,0.00016438,2]
[357661453,1744291849963,-500.0,0.00016438,2]
[357661454,1744291849973,-500.0,0.00016438,2]
[357661455,1744291849982,-1830.14,0.00016438,2]
[357661456,1744291849992,-500.0,0.00016438,2]
[357661457,1744291850002,-500.0,0.00016438,2]
[357661458,1744291850013,-500.0,0.00016438,2]
[357661459,1744291850023,-500.0,0.00016438,2]
[357661460,1744291850032,-704.21,0.00016438,2]
[357661461,1744291850042,-500.0,0.00016438,2]
[357661462,1744291850053,-500.0,0.00016438,2]
[357661463,1744291850063,-500.0,0.00016438,2]
[357661464,1744291850074,-907.82,0.00016438,2]
[357661465,1744291850084,-500.0,0.00016438,2]
[357661466,1744291850095,-1040.63,0.00016438,2]
[357661467,1744291850105,-510.01404556,0.00016438,2]
[357661468,1744291850116,-500.0,0.00016438,2]
[357661469,1744291850127,-1317.9,0.00016438,2]
[357661470,1744291850137,-500.0,0.00016438,2]
[357661471,1744291850148,-849.4,0.00016438,2]
[357661472,1744291850159,-500.0,0.00016438,2]
[357661473,1744291850169,-500.0,0.00016438,2]
[357661474,1744291850180,-500.0,0.00016438,2]
[357661475,1744291850190,-1307.19,0.00016438,2]
[357661476,1744291850201,-500.0,0.00016438,2]
[357661477,1744291850211,-721.15,0.00016438,2]
[357661478,1744291850221,-501.75,0.00016438,2]
[357661479,1744291850231,-585.29,0.00016438,2]
[357661480,1744291850240,-500.0,0.00016438,2]
[357661481,1744291850251,-580.55,0.00016438,2]
[357661482,1744291850261,-500.0,0.00016438,2]
[357661483,1744291850272,-855.2,0.00016438,2]
[357661484,1744291850282,-1136.49,0.00016438,2]
[357661485,1744291850292,-805.03,0.00016438,2]
[357661486,1744291850302,-500.0,0.00016438,2]
[357661487,1744291850312,-500.0,0.00016438,2]
[357661488,1744291850322,-1123.54,0.00016438,2]
[357661489,1744291850331,-500.0,0.00016438,2]
[357661490,1744291850341,-747.12,0.00016438,2]
[357661491,1744291850351,-500.0,0.00016438,2]
[357661492,1744291850361,-500.0,0.00016438,2]
[357661493,1744291850371,-598.34,0.00016438,2]
[357661494,1744291850380,-1302.35,0.00016438,2]
[357661495,1744291850390,-500.0,0.00016438,2]
[357661496,1744291850400,-500.0,0.00016438,2]
[357661497,1744291850409,-503.5592575,0.00016438,2]
[357661498,1744291850420,-500.0,0.00016438,2]
[357661499,1744291850430,-2209.91,0.00016438,2]
[357661500,1744291850440,-1236.2,0.00016438,2]
[357661501,1744291850450,-500.0,0.00016438,2]
[357661502,1744291850460,-682.8,0.00016438,2]
[357661503,1744291850471,-500.0,0.00016438,2]
[357661504,1744291850481,-500.0,0.00016438,2]
[357661505,1744291850493,-500.0,0.00016438,2]
[357661506,1744291850507,-500.0,0.00016438,2]
[357661507,1744291850518,-500.0,0.00016438,2]
[357661508,1744291850528,-500.0,0.00016438,2]
[357661509,1744291850543,-763.86,0.00016438,2]
[357661510,1744291850552,-523.04,0.00016438,2]
[357661511,1744291850567,-500.0,0.00016438,2]
[357661512,1744291850578,-500.0,0.00016438,2]
[357661513,1744291850589,-549.4,0.00016438,2]
[357661514,1744291850600,-500.0,0.00016438,2]
[357661515,1744291850611,-1448.97,0.00016438,2]
[357661516,1744291850622,-500.0,0.00016438,2]
[357661517,1744291850632,-500.0,0.00016438,2]
[357661518,1744291850643,-500.0,0.00016438,2]
[357661519,1744291850654,-500.0,0.00016438,2]
[357661520,1744291850664,-500.0,0.00016438,2]
[357661521,1744291850674,-500.0,0.00016438,2]
[357661522,1744291850685,-1679.19,0.00016438,2]
[357661523,1744291850695,-793.81,0.00016438,2]
[357661524,1744291850706,-621.39,0.00016438,2]
[357661525,1744291850717,-500.0,0.00016438,2]
[357661526,1744291850728,-500.0,0.00016438,2]
[357661527,1744291850739,-3833.22,0.00016438,2]
[357661528,1744291850755,-500.0,0.00016438,2]
[357661529,1744291850766,-655.66,0.00016438,2]
[357661530,1744291850777,-1536.48,0.00016438,2]
[357661531,1744291850787,-500.0,0.00016438,2]
[357661532,1744291850798,-500.0,0.00016438,2]
[357661533,1744291850809,-500.0,0.00016438,2]
[357661534,1744291850819,-642.17,0.00016438,2]
[357661535,1744291850830,-500.0,0.00016438,2]
[357661536,1744291850840,-1467.26,0.00016438,2]
[357661537,1744291850850,-500.0,0.00016438,2]
[357661538,1744291850860,-896.57,0.00016438,2]
[357661539,1744291850870,-500.0,0.00016438,2]
[357661540,1744291850880,-500.0,0.00016438,2]
[357661541,1744291850890,-3866.76,0.00016438,2]
[357661542,1744291850901,-500.0,0.00016438,2]
[357661543,1744291850911,-500.0,0.00016438,2]
[357661544,1744291850921,-500.0,0.00016438,2]
[357661545,1744291850931,-1601.96,0.00016438,2]
[357661546,1744291851081,-500.0,0.00016438,2]
[357661547,1744291851092,-500.0,0.00016438,2]
[357661548,1744291851102,-500.0,0.00016438,2]
[357661549,1744291851112,-500.0,0.00016438,2]
[357661550,1744291851123,-500.0,0.00016438,2]
[357661551,1744291851133,-3852.73,0.00016438,2]
[357661552,1744291851143,-500.0,0.00016438,2]
[357661553,1744291851154,-500.0,0.00016438,2]
[357661554,1744291851164,-500.0,0.00016438,2]
[357661555,1744291851175,-500.0,0.00016438,2]
[357661556,1744291851185,-500.0,0.00016438,2]
[357661557,1744291851196,-4062.51,0.00016438,2]
[357661558,1744291851206,-2660.5,0.00016438,2]
[357661559,1744291851216,-6044.64,0.00016438,2]
[357661560,1744291851225,-500.0,0.00016438,2]
[357661561,1744291851235,-500.0,0.00016438,2]
[357661562,1744291851246,-500.0,0.00016438,2]
[357661563,1744291851256,-500.0,0.00016438,2]
[357661564,1744291851267,-1036.32,0.00016438,2]
[357661565,1744291851278,-391.16416818,0.00016438,2]
[357661566,1744291851288,-562.08,0.00016438,2]
[357661567,1744291851298,-500.0,0.00016438,2]
[357661568,1744291851308,-500.0,0.00016438,2]
[357661569,1744291851317,-500.0,0.00016438,2]
[357661570,1744291851327,-500.0,0.00016438,2]
[357661571,1744291851338,-500.0,0.00016438,2]
[357661572,1744291851348,-8025.1,0.00016438,2]
[357661573,1744291851358,-620.24,0.00016438,2]
[357661574,1744291851368,-500.0,0.00016438,2]
[357661575,1744291851378,-500.0,0.00016438,2]
[357661576,1744291851388,-2782.51,0.00016438,2]
[357661577,1744291851398,-500.0,0.00016438,2]
[357661578,1744291851408,-2402.32,0.00016438,2]
[357661579,1744291851418,-763.0,0.00016438,2]
[357661580,1744291851428,-500.0,0.00016438,2]
[357661581,1744291851438,-1090.69,0.00016438,2]
[357661582,1744291851447,-574.98,0.00016438,2]
[357661583,1744291851457,-501.2206278,0.00016438,2]
[357661584,1744291851466,-546.95,0.00016438,2]
[357661585,1744291851476,-500.0,0.00016438,2]
[357661586,1744291851486,-500.0,0.00016438,2]
[357661587,1744291851496,-2871.0,0.00016438,2]
[357661588,1744291851506,-500.0,0.00016438,2]
[357661589,1744291851515,-1061.66,0.00016438,2]
[357661590,1744291851525,-500.0,0.00016438,2]
[357661591,1744291851537,-663.15,0.00016438,2]
[357661592,1744291851549,-500.0,0.00016438,2]
[357661593,1744291851559,-500.0,0.00016438,2]
[357661594,1744291851568,-534.22,0.00016438,2]
[357661595,1744291851578,-5186.23,0.00016438,2]
[357661596,1744291851591,-500.0,0.00016438,2]
[357661597,1744291851600,-500.0,0.00016438,2]
[357661598,1744291851610,-500.0,0.00016438,2]
[357661599,1744291851621,-500.0,0.00016438,2]
[357661600,1744291851631,-500.0,0.00016438,2]
[357661601,1744291851642,-7503.18,0.00016438,2]
[357661602,1744291851652,-500.0,0.00016438,2]
[357661603,1744291851662,-500.0,0.00016438,2]
[357661604,1744291851672,-2681.18,0.00016438,2]
[357661605,1744291851682,-500.0,0.00016438,2]
[357661606,1744291851692,-500.0,0.00016438,2]
[357661607,1744291851701,-500.0,0.00016438,2]
[357661608,1744291851711,-500.0,0.00016438,2]
[357661609,1744291851722,-500.0,0.00016438,2]
[357661610,1744291851732,-288.48734043,0.00016438,2]
[357661611,1744291851741,-500.0,0.00016438,2]
[357661612,1744291851754,-903.96,0.00016438,2]
[357661613,1744291851763,-500.0,0.00016438,2]
[357661614,1744291851773,-500.0,0.00016438,2]
[357661615,1744291851782,-1432.26,0.00016438,2]
[357661616,1744291851792,-500.0,0.00016438,2]
[357661617,1744291851802,-598.57,0.00016438,2]
[357661618,1744291851812,-500.0,0.00016438,2]
[357661619,1744291851822,-2880.72,0.00016438,2]
[357661620,1744291851832,-500.0,0.00016438,2]
[357661621,1744291851841,-500.0,0.00016438,2]
[357661622,1744291851850,-3039.76,0.00016438,2]
[357661623,1744291851860,-500.0,0.00016438,2]
[357661624,1744291851869,-500.0,0.00016438,2]
[357661625,1744291851879,-506.9897506,0.00016438,2]
[357661626,1744291851890,-500.0,0.00016438,2]
[357661627,1744291851900,-3808.63,0.00016438,2]
[357661628,1744291851910,-410.36,0.00016438,2]
[357661629,1744291851920,-627.39586603,0.00016438,2]
[357661630,1744291851930,-1726.15,0.00016438,2]
[357661631,1744291851940,-500.0,0.00016438,2]
[357661632,1744291851950,-161.58651658,0.00016438,2]
[357661633,1744291851960,-500.0,0.00016438,2]
[357661634,1744291851970,-500.0,0.00016438,2]
[357661635,1744291851980,-1039.78,0.00016438,2]
[357661636,1744291851990,-3473.33,0.00016438,2]
[357661637,1744291852002,-424.55884858,0.00016438,2]
[357661638,1744291852012,-500.0,0.00016438,2]
[357661639,1744291852022,-753.71,0.00016438,2]
[357661640,1744291852032,-500.0,0.00016438,2]
[357661641,1744291852042,-4661.37,0.00016438,2]
[357661642,1744291852052,-1289.72,0.00016438,2]
[357661643,1744291852062,-500.0,0.00016438,2]
[357661644,1744291852072,-500.0,0.00016438,2]
[357661645,1744291852082,-500.0,0.00016438,2]
[357661646,1744291852093,-500.0,0.00016438,2]
[357661647,1744291852103,-602.95,0.00016438,2]
[357661648,1744291852113,-500.0,0.00016438,2]
[357661649,1744291852123,-500.0,0.00016438,2]
[357661650,1744291852133,-1201.26,0.00016438,2]
[357661651,1744291852143,-4028.46,0.00016438,2]
[357661652,1744291852153,-500.0,0.00016438,2]
[357661653,1744291852164,-1454.11,0.00016438,2]
[357661654,1744291852174,-500.0,0.00016438,2]
[357661655,1744291852184,-500.0,0.00016438,2]
[357661656,1744291852194,-500.0,0.00016438,2]
[357661657,1744291852204,-1186.81,0.00016438,2]
[357661658,1744291852214,-1467.27,0.00016438,2]
[357661659,1744291852224,-4094.25,0.00016438,2]
[357661660,1744291852234,-4094.25,0.00016438,2]
[357661661,1744291852244,-4094.25,0.00016438,2]
[357661662,1744291852256,-4094.25,0.00016438,2]
[357661663,1744291852266,-4094.25,0.00016438,2]
[357661664,1744291852277,-3318.03869766,0.00016438,2]
[357661665,1744291892810,700.0,0.00014594,2]
[357661666,1744292237156,505.4594944,0.00025,120]
[357661675,1744292680011,180.07383027,0.00014303,2]
[357661676,1744292804297,13538.0346593,0.00015,2]
[357661750,1744293035973,-169.7800827,0.00015032,2]
[357661751,1744293035986,-426.324367,0.00015097,2]
[357661752,1744293035998,-250.0,0.00015357,2]
[357661753,1744293036009,-500.0,0.00015447,2]
[357661754,1744293036019,-278.6555503,0.00015447,2]
[357661755,1744293036031,-221.3444497,0.00015447,2]
[357661756,1744293036041,-500.0,0.00015447,2]
[357661757,1744293036051,-500.0,0.00015447,2]
[357661758,1744293036062,-500.0,0.00015447,2]
[357661761,1744293036071,-500.0,0.00015447,2]
[357661764,1744293036082,-500.0,0.00015447,2]
[357661766,1744293036091,-339.43455684,0.00015447,2]
[357661767,1744293036101,-500.0,0.00015447,2]
[357661769,1744293036111,-500.0,0.00015447,2]
[357661770,1744293036120,-500.0,0.00015447,2]
[357661772,1744293036130,-500.0,0.00015447,2]
[357661783,1744293036140,-500.0,0.00015447,2]
[357661784,1744293036326,-500.0,0.00015447,2]
[357661785,1744293036336,-500.0,0.00015447,2]
[357661786,1744293036346,-500.0,0.00015447,2]
[357661787,1744293036355,-500.0,0.00015447,2]
[357661788,1744293036364,-500.0,0.00015447,2]
[357661789,1744293036374,-500.0,0.00015447,2]
[357661790,1744293036383,-500.0,0.00015447,2]
[357661791,1744293036393,-79.16737088,0.00015447,2]
[357661792,1744293036405,-420.83262912,0.00015447,2]
[357661793,1744293036415,-300.0,0.00015447,2]
[357661794,1744293036424,-218.6689108,0.00015463,2]
[357661795,1744293036433,-159.099,0.000159,2]
[357661796,1744293036442,-189.4168027,0.00015944,2]
[357661797,1744293036452,-700.0,0.00015964,2]
[357661798,1744293036462,-195.14640646,0.00016147,2]
[357661799,1744293036471,-543.0,0.00016148,2]
[357661800,1744293036481,-913.424,0.00016148,2]
[357661801,1744293036491,-401.0,0.00016148,2]
[357661802,1744293036503,-404.22733198,0.00016338,2]
[357661803,1744293036513,-565.08139685,0.00016338,2]
[357661837,1744293038351,-1219.75,0.00016338,2]
[357661841,1744293038423,-1113.20330542,0.00016338,2]
[357661852,1744293038551,-2395.12675407,0.00016338,2]
[357661854,1744293038563,-151.0,0.00016428,2]
[357661856,1744293038575,-200.0,0.00016428,2]
[357661858,1744293038586,-500.0,0.00016438,2]
[357661860,1744293038598,-500.0,0.00016438,2]
[357661862,1744293038609,-500.0,0.00016438,2]
[357661864,1744293038620,-500.0,0.00016438,2]
[357661866,1744293038631,-500.0,0.00016438,2]
[357661868,1744293038642,-500.0,0.00016438,2]
[357661870,1744293038652,-500.30608766,0.00016438,2]
[357661872,1744293038662,-500.0,0.00016438,2]
[357661874,1744293038672,-500.0,0.00016438,2]
[357661876,1744293038683,-500.0,0.00016438,2]
[357661879,1744293038693,-513.7334,0.00016438,2]
[357661881,1744293038704,-506.71689191,0.00016438,2]
[357661883,1744293038713,-500.0,0.00016438,2]
[357661885,1744293038723,-500.0,0.00016438,2]
[357661887,1744293038732,-500.0,0.00016438,2]
[357661889,1744293038739,-500.0,0.00016438,2]
[357661891,1744293038753,-339.44911166,0.00016438,2]
[357661894,1744293038775,-500.0,0.00016438,2]
[357661896,1744293038785,-500.0,0.00016438,2]
[357661898,1744293038796,-505.83,0.00016438,2]
[357661900,1744293038806,-500.0,0.00016438,2]
[357661902,1744293038816,-500.0,0.00016438,2]
[357661905,1744293038826,-500.0,0.00016438,2]
[357661907,1744293038836,-500.0,0.00016438,2]
[357661909,1744293038846,-500.0,0.00016438,2]
[357661911,1744293038857,-500.0,0.00016438,2]
[357661913,1744293038867,-515.58719096,0.00016438,2]
[357661915,1744293038877,-500.0,0.00016438,2]
[357661917,1744293038887,-747.87,0.00016438,2]
[357661919,1744293038897,-308.954582,0.00016438,2]
[357661921,1744293038908,-500.0,0.00016438,2]
[357661923,1744293038920,-1893.81,0.00016438,2]
[357661925,1744293038930,-500.0,0.00016438,2]
[357661927,1744293038940,-500.0,0.00016438,2]
[357661929,1744293038951,-500.0,0.00016438,2]
[357661931,1744293038962,-534.78,0.00016438,2]
[357661934,1744293038972,-500.0,0.00016438,2]
[357661936,1744293038982,-1049.14,0.00016438,2]
[357661938,1744293038994,-920.28,0.00016438,2]
[357661940,1744293039007,-500.0,0.00016438,2]
[357661942,1744293039017,-500.0,0.00016438,2]
[357661944,1744293039027,-500.0,0.00016438,2]
[357661946,1744293039037,-720.73,0.00016438,2]
[357661948,1744293039047,-667.18,0.00016438,2]
[357661950,1744293039057,-500.0,0.00016438,2]
[357661952,1744293039068,-500.0,0.00016438,2]
[357661954,1744293039078,-500.0,0.00016438,2]
[357661956,1744293039089,-879.56,0.00016438,2]
[357661958,1744293039098,-500.0,0.00016438,2]
[357661960,1744293039108,-500.0,0.00016438,2]
[357661962,1744293039118,-830.71,0.00016438,2]
[357661964,1744293039127,-574.43493506,0.00016438,2]
[357661966,1744293039138,-559.04005248,0.00016438,2]
[357661968,1744293039148,-500.0,0.00016438,2]
[357661970,1744293039159,-500.0,0.00016438,2]
[357661972,1744293039169,-916.88,0.00016438,2]
[357661974,1744293039179,-500.0,0.00016438,2]
[357661977,1744293039189,-500.0,0.00016438,2]
[357661979,1744293039201,-500.0,0.00016438,2]
[357661981,1744293039211,-500.0,0.00016438,2]
[357661983,1744293039221,-500.0,0.00016438,2]
[357661985,1744293039231,-500.0,0.00016438,2]
[357661987,1744293039241,-500.0,0.00016438,2]
[357661989,1744293039253,-500.0,0.00016438,2]
[357661991,1744293039263,-500.0,0.00016438,2]
[357661993,1744293039273,-500.0,0.00016438,2]
[357661995,1744293039283,-500.0,0.00016438,2]
[357661997,1744293039293,-500.0,0.00016438,2]
[357661999,1744293039303,-197.92110155,0.00016438,2]
[357662001,1744293039313,-151.13135829,0.00016438,2]
[357662004,1744293039323,-666.08,0.00016438,2]
[357662006,1744293039333,-1057.14,0.00016438,2]
[357662008,1744293039343,-630.97,0.00016438,2]
[357662010,1744293039353,-500.0,0.00016438,2]
[357662011,1744293039363,-500.0,0.00016438,2]
[357662014,1744293039593,-880.2,0.00016438,2]
[357662016,1744293039605,-500.0,0.00016438,2]
[357662017,1744293039615,-764.89,0.00016438,2]
[357662018,1744293039625,-500.0,0.00016438,2]
[357662019,1744293039635,-715.99,0.00016438,2]
[357662020,1744293039644,-500.0,0.00016438,2]
[357662021,1744293039654,-500.0,0.00016438,2]
[357662022,1744293039664,-255.09211223,0.00016438,2]
[357662024,1744293039674,-1248.08,0.00016438,2]
[357662025,1744293039683,-500.0,0.00016438,2]
[357662026,1744293039693,-654.35,0.00016438,2]
[357662027,1744293039703,-500.0,0.00016438,2]
[357662028,1744293039712,-500.0,0.00016438,2]
[357662029,1744293039721,-300.0,0.00016438,2]
[357662030,1744293039731,-511.3280462,0.00016438,2]
[357662031,1744293039741,-613.84807566,0.00016438,2]
[357662033,1744293039752,-1003.38,0.00016438,2]
[357662034,1744293039762,-500.0,0.00016438,2]
[357662035,1744293039771,-500.0,0.00016438,2]
[357662036,1744293039781,-500.0,0.00016438,2]
[357662037,1744293039791,-500.0,0.00016438,2]
[357662038,1744293039801,-500.0,0.00016438,2]
[357662039,1744293039811,-500.0,0.00016438,2]
[357662040,1744293039820,-500.0,0.00016438,2]
[357662041,1744293039830,-502.47654178,0.00016438,2]
[357662043,1744293039839,-500.0,0.00016438,2]
[357662044,1744293039848,-500.0,0.00016438,2]
[357662045,1744293039857,-500.0,0.00016438,2]
[357662046,1744293039867,-500.0,0.00016438,2]
[357662047,1744293039877,-500.0,0.00016438,2]
[357662048,1744293039886,-500.0,0.00016438,2]
[357662049,1744293039896,-500.0,0.00016438,2]
[357662050,1744293039909,-500.0,0.00016438,2]
[357662051,1744293039919,-500.0,0.00016438,2]
[357662052,1744293039928,-638.25769573,0.00016438,2]
[357662053,1744293039938,-500.0,0.00016438,2]
[357662054,1744293039950,-500.0,0.00016438,2]
[357662055,1744293039960,-500.0,0.00016438,2]
[357662056,1744293039970,-500.0,0.00016438,2]
[357662057,1744293039980,-500.0,0.00016438,2]
[357662058,1744293039991,-500.0,0.00016438,2]
[357662059,1744293040004,-500.0,0.00016438,2]
[357662060,1744293040014,-500.0,0.00016438,2]
[357662061,1744293040024,-500.0,0.00016438,2]
[357662063,1744293040035,-500.0,0.00016438,2]
[357662064,1744293040045,-500.0,0.00016438,2]
[357662065,1744293040055,-500.0,0.00016438,2]
[357662066,1744293040066,-1474.86,0.00016438,2]
[357662067,1744293040076,-594.4,0.00016438,2]
[357662068,1744293040086,-500.0,0.00016438,2]
[357662069,1744293040095,-500.0,0.00016438,2]
[357662070,1744293040105,-500.0,0.00016438,2]
[357662071,1744293040115,-524.16,0.00016438,2]
[357662072,1744293040124,-500.0,0.00016438,2]
[357662073,1744293040134,-500.0,0.00016438,2]
[357662074,1744293040143,-594.31,0.00016438,2]
[357662075,1744293040153,-2913.1,0.00016438,2]
[357662076,1744293040162,-618.81,0.00016438,2]
[357662077,1744293040172,-500.0,0.00016438,2]
[357662078,1744293040182,-500.0,0.00016438,2]
[357662079,1744293040191,-731.21,0.00016438,2]
[357662080,1744293040201,-500.0,0.00016438,2]
[357662081,1744293040211,-2569.47,0.00016438,2]
[357662082,1744293040221,-500.0,0.00016438,2]
[357662083,1744293040231,-500.0,0.00016438,2]
[357662084,1744293040240,-500.0,0.00016438,2]
[357662085,1744293040251,-3328.61,0.00016438,2]
[357662086,1744293040260,-500.0,0.00016438,2]
[357662087,1744293040270,-584.09,0.00016438,2]
[357662088,1744293040280,-1654.23,0.00016438,2]
[357662089,1744293040290,-528.46,0.00016438,2]
[357662090,1744293040300,-500.0,0.00016438,2]
[357662091,1744293040310,-500.0,0.00016438,2]
[357662092,1744293040319,-500.0,0.00016438,2]
[357662093,1744293040329,-500.0,0.00016438,2]
[357662094,1744293040338,-500.0,0.00016438,2]
[357662095,1744293040347,-500.0,0.00016438,2]
[357662096,1744293040357,-500.0,0.00016438,2]
[357662097,1744293040366,-500.0,0.00016438,2]
[357662098,1744293040376,-500.0,0.00016438,2]
[357662100,1744293040386,-500.0,0.00016438,2]
[357662102,1744293040395,-1151.21,0.00016438,2]